bitfinex/quotes_ETHUSD_20240924
["timestamp","ask_amount","ask_price","bid_price","bid_amount"]
[1727182558622,4.34261,2636.7,2636.6,0.811545]
[1727182559022,4.43744167,2636.7,2636.6,0.811545]
[1727182559436,4.34261,2636.7,2636.6,0.811545]
[1727182559652,4.43744139,2636.7,2636.6,0.811545]
[1727182560429,4.34261,2636.7,2636.6,0.811545]
[1727182563541,3.79248,2636.8,2636.6,0.811545]
[1727182564145,7.58507,2636.8,2636.6,0.811545]
[1727182564387,3.79248,2636.8,2636.6,0.811545]
[1727182565493,7.58454,2637.0,2636.6,0.811545]
[1727182565653,3.79242,2636.9,2636.6,1.2719875]
[1727182565859,3.79255,2636.8,2636.6,0.811545]
[1727182567056,3.79261,2636.7,2636.6,0.811545]
[1727182570376,0.55,2636.8,2636.6,0.811545]
[1727182570613,4.34254,2636.8,2636.6,0.811545]
[1727182570796,0.55,2636.8,2636.6,0.811545]
[1727182571100,4.34248,2636.8,2636.6,0.811545]
[1727182571462,4.34261,2636.7,2636.6,0.811545]
[1727182572405,4.4374319,2636.7,2636.6,0.811545]
[1727182572706,4.34261,2636.7,2636.6,0.811545]
[1727182575398,4.34234,2636.9,2636.6,0.773545]
[1727182575632,3.79249,2636.8,2636.6,0.773545]
[1727182576786,4.3424,2636.9,2636.6,0.773545]
[1727182578582,1.54552598,2637.8,2636.9,0.8015]
[1727182578815,3.79102,2637.9,2637.4,3.7916]
[1727182578973,3.79019,2638.4,2637.7,3.79115]
[1727182579173,3.79067,2638.1,2637.6,0.8015]
[1727182579380,0.0947746,2638.1,2637.6,0.8015]
[1727182579582,3.79112,2637.8,2637.6,0.8015]
[1727182580216,7.58228,2637.8,2637.6,0.8015]
[1727182580382,3.79112,2637.8,2637.6,0.8015]
[1727182581099,0.55,2637.9,2637.6,0.8015]
[1727182582299,3.79062,2638.1,2637.6,5.052016]
[1727182582623,3.79046,2638.2,2637.7,3.79109]
[1727182582771,3.88504826,2638.4,2637.8,4.629341]
[1727182582976,3.79047,2638.2,2637.9,0.8015]
[1727182584077,0.55,2638.1,2637.9,0.8015]
[1727182584582,4.3406,2638.1,2637.9,0.8015]
[1727182585490,0.55,2638.2,2637.9,0.8015]
[1727182585688,4.34046,2638.2,2637.9,0.8015]
[1727182587401,0.55,2638.2,2637.9,0.8015]
[1727182588081,0.55,2638.4,2637.9,5.051627]
[1727182588276,4.34028,2638.4,2637.9,4.59236]
[1727182588483,0.55,2638.4,2638.1,0.8015]
[1727182591127,0.55,2638.4,2638.1,4.59209]
[1727182591682,4.33989,2638.6,2638.1,4.59209]
[1727182592124,0.55,2638.4,2638.1,0.8015]
[1727182592701,3.79031,2638.3,2638.1,0.8015]
[1727182592884,0.55,2638.2,2638.1,0.8015]
[1727182594103,3.79046,2638.2,2638.1,0.8015]
[1727182594428,4.34046,2638.2,2638.1,0.8015]
[1727182596820,4.34046,2638.2,2637.9,0.8098]
[1727182599607,0.55,2638.2,2637.9,4.60062]
[1727182599934,3.79018,2638.4,2638.1,0.8098]
[1727182599935,0.55,2638.4,2638.1,0.8098]
[1727182600119,0.55,2638.6,2638.1,4.60039]
[1727182600430,3.78996,2638.6,2638.1,5.060439]
[1727182600642,3.78969,2638.8,2638.3,3.7903]
[1727182600798,3.78969,2638.8,2638.4,0.8098]
[1727182601969,0.55,2638.8,2638.4,4.59997]
[1727182602168,0.55,2638.8,2638.4,5.438997]
[1727182602526,0.55,2638.8,2638.4,0.8098]
[1727182602527,3.78974,2638.7,2638.4,0.8098]
[1727182602934,7.57959,2638.7,2638.4,0.8098]
[1727182603270,3.7899,2638.6,2638.2,0.8098]
[1727182604267,0.55,2638.5,2638.2,0.8098]
[1727182604435,4.3401,2638.5,2638.2,0.8098]
[1727182604640,8.13023,2638.5,2638.2,0.8098]
[1727182604936,4.3401,2638.5,2638.2,0.8098]
[1727182605524,0.55,2638.3,2638.2,0.8098]
[1727182605754,4.34031,2638.3,2637.9,0.8254]
[1727182606127,4.34031,2638.3,2637.9,4.61628]
[1727182606430,0.55,2638.4,2638.0,3.79074]
[1727182607338,0.55,2638.4,2638.0,4.29796462]
[1727182608564,4.34019,2638.4,2638.0,4.29796462]
[1727182609941,0.55,2638.4,2638.0,4.29796462]
[1727182610139,3.78992,2638.6,2638.1,3.79054]
[1727182610346,3.78986,2638.7,2638.3,0.8254]
[1727182610575,3.78982,2638.7,2638.3,0.8254]
[1727182611064,3.7896,2638.8,2638.4,3.79017]
[1727182612680,0.55,2638.8,2638.4,3.79017]
[1727182612964,0.55,2638.8,2638.3,0.8254]
[1727182613182,4.33974,2638.8,2638.3,0.8254]
[1727182613357,4.33974,2638.8,2638.3,4.61569]
[1727182613531,3.78975,2638.7,2638.3,4.61569]
[1727182613727,3.78975,2638.7,2638.3,0.8254]
[1727182613972,5.13974,2638.8,2638.3,0.8254]
[1727182614132,4.33974,2638.8,2638.3,4.61565]
[1727182614949,4.33974,2638.8,2638.3,0.8254]
[1727182615142,4.33974,2638.8,2638.3,4.6157]
[1727182616339,4.33974,2638.8,2638.3,0.8254]
[1727182616535,8.12941,2638.8,2638.3,4.61566]
[1727182616771,0.55,2638.8,2638.3,0.8254]
[1727182616964,3.78986,2638.7,2638.3,0.8254]
[1727182617146,3.78993,2638.6,2638.3,0.8254]
[1727182617737,4.34005,2638.5,2638.3,0.8254]
[1727182618870,4.3399,2638.6,2638.3,0.8254]
[1727182619079,3.78981,2638.7,2638.3,0.8254]
[1727182620283,0.55,2638.7,2638.3,4.61564]
[1727182620805,0.79172598,2638.9,2638.4,3.79003]
[1727182621030,4.58124598,2638.9,2638.3,4.69141807]
[1727182621307,3.78967,2638.8,2638.6,0.7545]
[1727182621689,4.58139598,2638.8,2638.6,0.7545]
[1727182622403,0.79172598,2638.8,2638.6,0.7545]
[1727182622765,0.91425183,2638.7,2638.6,0.7545]
[1727182622996,0.79172598,2638.8,2638.6,0.7545]
[1727182623398,1.70656024,2638.7,2638.6,0.7545]
[1727182623617,0.79172598,2638.7,2638.6,0.7545]
[1727182623779,3.78995,2638.6,2638.3,0.7545]
[1727182623982,4.58167598,2638.6,2638.3,0.7545]
[1727182624309,0.79172598,2638.6,2638.3,0.7545]
[1727182624517,0.79172598,2638.5,2638.3,0.7545]
[1727182625011,1.7073301,2638.4,2638.3,0.7545]
[1727182626178,1.7073301,2638.4,2638.2,0.5]
[1727182626583,0.79172598,2638.4,2638.2,4.29043]
[1727182626900,0.79172598,2638.4,2638.2,0.5]
[1727182627103,1.70773004,2638.4,2638.2,0.5]
[1727182627489,0.79172598,2638.4,2638.2,0.5]
[1727182627883,1.70800984,2638.4,2638.2,0.5]
[1727182628083,1.70800984,2638.3,2638.2,0.5]
[1727182628393,0.91634311,2638.3,2638.2,4.29045]
[1727182628903,0.79172598,2638.4,2638.2,4.86720419]
[1727182629983,0.79172598,2638.4,2638.3,3.79031]
[1727182630525,0.79172598,2638.5,2638.4,4.54467]
[1727182630733,1.18758897,2638.7,2638.5,3.79003]
[1727182630935,0.79350808,2638.6,2638.5,3.79003]
[1727182631223,1.70997305,2638.6,2638.4,5.52334453]
[1727182631385,0.79350808,2638.6,2638.4,9.31351453]
[1727182631584,0.79350808,2638.6,2638.5,1.24708482]
[1727182631915,1.70998713,2638.6,2638.5,1.24708482]
[1727182632131,0.79350808,2638.6,2638.5,1.24708482]
[1727182632710,1.70998713,2638.6,2638.5,1.24708482]
[1727182633431,0.79350808,2638.6,2638.5,5.03711482]
[1727182633801,1.70998713,2638.6,2638.5,5.03711482]
[1727182634137,1.70998713,2638.6,2638.5,5.41220284]
[1727182634336,1.70998713,2638.6,2638.5,5.41220037]
[1727182634565,1.70998713,2638.6,2638.5,5.03711482]
[1727182634714,0.79350808,2638.6,2638.5,5.03711482]
[1727182635110,7.34031,2638.3,2637.7,0.37867301]
[1727182635323,5.12633,2637.8,2637.7,0.37867301]
[1727182635525,3.79204,2637.1,2637.0,0.3751983]
[1727182635705,3.79233,2636.9,2636.8,0.39598119]
[1727182635903,3.79252,2636.8,2636.4,4.51460777]
[1727182636104,3.79252,2636.8,2636.6,4.0]
[1727182636328,3.79252,2636.8,2636.4,3.91418823]
[1727182636503,7.58507,2636.8,2636.4,4.41858644]
[1727182636702,3.79252,2636.8,2636.4,4.41858644]
[1727182637025,3.79241,2636.9,2636.4,4.41858644]
[1727182637227,3.79241,2636.9,2636.5,0.82116564]
[1727182637409,3.79248,2636.8,2636.5,0.82116564]
[1727182639935,3.79225,2637.0,2636.5,0.82116564]
[1727182640137,3.79234,2636.9,2636.5,0.82116564]
[1727182640750,3.79225,2637.0,2636.5,0.82116564]
[1727182640751,3.7926,2636.8,2636.5,0.82116564]
[1727182640939,3.79262,2636.7,2636.4,4.46586286]
[1727182641254,3.79277,2636.6,2636.4,3.91418823]
[1727182642054,3.7926,2636.8,2636.4,3.91418823]
[1727182642055,3.79258,2636.8,2636.4,3.91418823]
[1727182642350,3.79264,2636.7,2636.4,3.91418823]
[1727182643128,3.79251,2636.8,2636.4,3.91418823]
[1727182643328,3.79251,2636.8,2636.4,4.76038905]
[1727182644432,3.79249,2636.8,2636.4,4.76038905]
[1727182645325,3.79235,2636.9,2636.4,8.55339905]
[1727182645542,3.79228,2637.0,2636.4,8.55339905]
[1727182645836,3.79227,2637.0,2636.4,5.19088545]
[1727182646017,7.58454,2637.0,2636.4,5.19088545]
[1727182646639,3.79227,2637.0,2636.4,5.19088545]
[1727182646825,3.79237,2636.9,2636.4,5.19088545]
[1727182647216,3.79237,2636.9,2636.4,4.63921082]
[1727182649359,3.79227,2637.0,2636.4,4.63921082]
[1727182649556,4.57703,2637.4,2636.6,0.7545]
[1727182649762,3.79176,2637.3,2636.8,3.79238]
[1727182650361,3.79176,2637.3,2636.8,4.626338]
[1727182652036,7.58344,2637.4,2636.9,3.79231]
[1727182652360,3.79171,2637.4,2636.9,3.79231]
[1727182652562,3.7917,2637.4,2636.9,3.79231]
[1727182653128,7.5834,2637.4,2636.8,8.418728]
[1727182653456,3.79177,2637.3,2636.8,4.626338]
[1727182653661,7.58343,2637.4,2636.8,8.418698]
[1727182653869,4.57672,2637.6,2637.0,3.79214]
[1727182654166,4.5508,2637.9,2637.2,3.79182]
[1727182654329,4.5508,2637.9,2637.2,4.26176524]
[1727182654530,3.79104,2637.8,2637.3,3.79173]
[1727182655257,3.79119,2637.7,2637.2,0.46997524]
[1727182655580,3.79134,2637.6,2637.1,4.62403]
[1727182656173,3.79148,2637.5,2636.7,0.8321]
[1727182656349,3.79179,2637.3,2636.8,7.5847]
[1727182656751,3.79148,2637.5,2636.9,3.79228]
[1727182656752,3.79161,2637.4,2636.9,3.79228]
[1727182659945,3.79182,2637.3,2636.8,3.79233]
[1727182660153,3.79182,2637.3,2636.8,7.58471]
[1727182660477,3.79182,2637.3,2636.9,3.79231]
[1727182660686,6.94876367,2637.6,2636.8,4.254773]
[1727182660884,3.79162,2637.4,2637.0,3.79218]
[1727182661775,3.79143,2637.6,2637.1,3.79202]
[1727182661776,3.7914,2637.6,2637.1,3.79202]
[1727182661939,3.7914,2637.6,2636.8,4.34403463]
[1727182661940,0.7599,2637.5,2636.8,4.34403463]
[1727182662153,3.79168,2637.4,2636.9,3.79232]
[1727182662341,7.58337,2637.4,2636.9,3.79232]
[1727182663743,3.79148,2637.5,2637.1,0.8321]
[1727182664082,3.79117,2637.8,2637.3,3.79174]
[1727182664250,0.7599,2638.0,2637.4,3.79154]
[1727182664251,4.55073,2638.0,2637.4,3.79154]
[1727182664452,3.79112,2637.8,2637.2,4.02192689]
[1727182664646,7.58225,2637.8,2637.2,7.81373689]
[1727182664958,7.58225,2637.8,2637.1,0.90793529]
[1727182664959,4.01201619,2637.7,2636.8,0.8321]
[1727182665161,3.79183,2637.3,2636.8,4.6245]
[1727182665753,3.79171,2637.4,2636.9,3.79222]
[1727182665947,3.79171,2637.4,2636.8,4.6245]
[1727182666149,3.79171,2637.4,2636.9,3.79232]
[1727182667583,3.79168,2637.4,2636.9,3.79232]
[1727182667753,7.58337,2637.4,2636.9,3.79232]
[1727182667954,3.79168,2637.4,2636.9,3.79232]
[1727182668766,0.55,2637.5,2636.9,3.79232]
[1727182668969,3.79161,2637.4,2636.9,4.633998]
[1727182671088,3.79161,2637.4,2636.9,8.426248]
[1727182671451,4.34147,2637.5,2637.0,3.79213]
[1727182672994,0.55,2637.5,2637.1,3.79199]
[1727182673322,0.55,2637.5,2636.3,0.764]
[1727182673323,0.55,2637.2,2636.3,0.764]
[1727182673500,3.79227,2637.0,2636.4,7.79294]
[1727182674203,0.55,2637.0,2636.6,3.79274]
[1727182674499,3.79197,2637.2,2636.7,3.79261]
[1727182674992,1.55868073,2637.3,2636.5,0.55167463]
[1727182675164,0.62488327,2637.2,2636.8,4.55637]
[1727182675366,1.55868073,2637.3,2636.9,3.79221]
[1727182675570,1.55868073,2637.3,2637.0,3.79216]
[1727182675571,0.78918073,2637.3,2637.0,3.79216]
[1727182675902,0.78918073,2637.4,2636.8,4.55637]
[1727182676056,0.55,2637.1,2636.5,3.79282]
[1727182676258,2.90234278,2637.1,2636.5,7.58562]
[1727182676462,0.62526482,2637.0,2636.5,3.7928]
[1727182676661,0.78918073,2637.0,2636.6,3.79275]
[1727182676886,2.35314017,2637.0,2636.6,3.79275]
[1727182677112,1.1837711,2637.1,2636.6,3.79263]
[1727182677113,0.78918073,2637.1,2636.6,3.79263]
[1727182677312,2.35375823,2637.1,2636.6,3.79263]
[1727182677487,0.78918073,2636.9,2636.6,7.58529]
[1727182677820,0.62795122,2636.8,2636.6,3.79263]
[1727182677985,0.62795122,2636.8,2636.6,8.42026]
[1727182678317,0.78918073,2636.9,2636.6,4.62759]
[1727182678529,1.41713398,2636.9,2636.8,3.79247]
[1727182678896,2.35906386,2636.9,2636.8,3.79247]
[1727182679420,6.92103386,2636.9,2636.4,4.16745445]
[1727182679589,1.73114278,2636.8,2636.4,3.79303]
[1727182679794,2.35911748,2636.7,2636.4,3.79303]
[1727182679996,0.62795426,2636.6,2636.4,3.79303]
[1727182680197,0.62795426,2636.6,2636.3,0.764]
[1727182680198,0.6279313,2636.5,2636.3,3.764]
[1727182680425,0.6279313,2636.5,2636.3,4.55719]
[1727182681127,0.78918073,2636.6,2636.4,3.79305]
[1727182681283,0.6279112,2636.5,2636.4,3.79305]
[1727182681787,0.6279112,2636.5,2636.3,2.06609689]
[1727182682110,1.41709193,2636.5,2636.3,1.30209689]
[1727182682309,2.35891176,2636.5,2636.3,1.30209689]
[1727182682485,0.78918073,2636.5,2636.3,0.37444312]
[1727182682817,0.78918073,2636.5,2636.4,0.37444312]
[1727182683018,1.41702558,2636.5,2636.4,0.37444312]
[1727182683526,1.41702558,2636.5,2636.4,4.96357143]
[1727182683685,0.62784485,2636.5,2636.4,5.35345572]
[1727182683886,0.62784485,2636.6,2636.4,5.35345572]
[1727182684091,0.62784485,2636.5,2636.4,1.18514312]
[1727182684396,0.62784485,2636.6,2636.4,4.97819312]
[1727182684624,0.62784485,2636.5,2636.4,4.97819312]
[1727182684823,0.62784485,2636.5,2636.4,5.53605478]
[1727182685041,0.62784485,2636.5,2636.4,4.97903059]
[1727182685546,0.62784485,2636.6,2636.4,4.97903059]
[1727182685726,1.56746774,2636.5,2636.4,4.97903059]
[1727182686128,0.62784485,2636.5,2636.4,4.97903059]
[1727182686323,0.62784485,2636.6,2636.4,5.48098406]
[1727182686526,0.62784485,2636.5,2636.4,5.48098406]
[1727182686837,1.56733045,2636.5,2636.4,5.48098406]
[1727182687215,0.62784485,2636.5,2636.4,5.48098406]
[1727182687416,0.62784485,2636.6,2636.4,5.48098406]
[1727182687631,0.62784485,2636.5,2636.4,5.48098406]
[1727182688037,1.1837711,2636.7,2636.4,5.48098406]
[1727182688038,0.62784485,2636.6,2636.4,5.48098406]
[1727182688216,0.62784485,2636.5,2636.4,5.48098406]
[1727182688398,1.1837711,2636.7,2636.5,3.7929]
[1727182688604,0.62634724,2636.6,2636.5,4.34098341]
[1727182688906,1.56586949,2636.6,2636.5,4.34098341]
[1727182689134,1.56586949,2636.6,2636.5,0.54808341]
[1727182689542,0.62634724,2636.6,2636.5,0.54808341]
[1727182689837,1.56586949,2636.6,2636.5,0.54808341]
[1727182690207,0.62634724,2636.6,2636.5,0.54808341]
[1727182690443,1.56586949,2636.6,2636.5,0.54808341]
[1727182690612,1.56586222,2636.6,2636.5,0.54808341]
[1727182693824,2.35875673,2636.6,2636.5,0.54808341]
[1727182694350,2.35875673,2636.6,2636.5,4.34098341]
[1727182694533,0.66888294,2636.7,2636.5,4.89265804]
[1727182694852,5.77451449,2637.0,2636.5,4.89265804]
[1727182694853,1.1837711,2637.0,2636.6,4.30792834]
[1727182695020,0.18496422,2637.2,2636.9,3.96803367]
[1727182695343,3.17908939,2637.7,2637.2,3.79184]
[1727182695344,1.57836147,2637.6,2637.2,3.79184]
[1727182695531,0.91987943,2637.5,2637.2,3.79184]
[1727182695740,0.91987943,2637.4,2637.2,4.88990834]
[1727182695914,2.37866147,2637.7,2637.3,3.7917]
[1727182696133,0.91988899,2637.6,2637.4,0.86816083]
[1727182696311,0.91988899,2637.5,2637.3,3.79175]
[1727182696630,0.91977577,2637.4,2637.3,4.66749842]
[1727182696806,1.57836147,2637.7,2637.3,4.66749842]
[1727182697009,0.91977766,2637.6,2637.3,4.74332411]
[1727182697252,0.91977766,2637.5,2637.4,0.95574068]
[1727182697743,0.91977766,2637.5,2637.3,0.5]
[1727182697951,0.91977766,2637.4,2637.3,0.5]
[1727182698636,0.91960467,2637.4,2637.3,0.5]
[1727182698839,0.91960467,2637.4,2637.3,1.12005783]
[1727182700112,0.91956034,2637.4,2637.3,1.12005783]
[1727182700552,0.91953216,2637.4,2637.3,1.12005783]
[1727182702555,1.57836147,2637.7,2637.3,4.91180783]
[1727182702753,0.91956452,2637.6,2637.5,3.79145]
[1727182702958,2.804468,2637.9,2637.5,4.60215]
[1727182703254,6.16933147,2638.1,2637.6,4.68808341]
[1727182703425,0.91943338,2638.0,2637.6,4.68808341]
[1727182703616,0.91943338,2637.9,2637.6,4.68808341]
[1727182703947,5.36903147,2638.1,2637.7,3.79113]
[1727182704152,2.10840376,2638.0,2637.7,0.55746014]
[1727182704354,1.18900535,2638.2,2637.9,3.79089]
[1727182704516,0.91925137,2638.1,2637.9,3.79089]
[1727182704852,0.79251808,2638.1,2637.7,4.34853014]
[1727182705023,0.79251808,2638.1,2637.8,0.90365736]
[1727182705240,0.79251808,2638.2,2637.8,4.69467736]
[1727182707239,4.58300808,2638.2,2637.8,0.90365736]
[1727182708393,3.79049,2638.2,2637.8,0.90365736]
[1727182709052,4.58291808,2638.3,2637.8,0.90365736]
[1727182709256,8.37336808,2638.3,2637.8,3.79102]
[1727182709864,4.58291808,2638.3,2637.8,3.79095]
[1727182710328,4.58269808,2638.4,2637.9,3.79088]
[1727182710524,4.58269808,2638.4,2638.0,0.8107]
[1727182711001,3.79018,2638.4,2638.0,4.60143]
[1727182711272,3.79018,2638.4,2638.0,0.8107]
[1727182712077,0.8003,2638.5,2638.0,0.8107]
[1727182712078,3.79039,2638.3,2638.0,0.8107]
[1727182714886,7.58078,2638.3,2638.0,0.8107]
[1727182715103,3.79039,2638.3,2638.0,0.8107]
[1727182715267,3.79039,2638.3,2637.8,4.59787]
[1727182715473,3.79047,2638.2,2637.8,5.356073]
[1727182716375,3.79062,2638.1,2637.5,0.8069]
[1727182716596,3.79062,2638.1,2637.6,3.79131]
[1727182716777,3.79062,2638.1,2637.6,7.58255]
[1727182716963,3.79062,2638.1,2637.7,0.838945]
[1727182717395,3.79062,2638.1,2637.7,4.630105]
[1727182717767,7.58087,2638.3,2637.7,4.630105]
[1727182718170,3.79049,2638.2,2637.7,4.630105]
[1727182718587,3.79049,2638.2,2637.8,3.79102]
[1727182718769,3.79049,2638.2,2637.8,4.6331545]
[1727182719169,1.59281808,2638.5,2637.8,4.6331545]
[1727182719401,3.79033,2638.3,2637.9,0.8069]
[1727182719610,7.58077,2638.3,2637.9,0.8069]
[1727182719776,7.58077,2638.3,2637.3,0.5]
[1727182719777,4.58456,2637.6,2637.3,0.5]
[1727182719968,3.79149,2637.5,2637.3,0.5]
[1727182720814,0.7931,2637.6,2637.3,0.5]
[1727182720996,3.79112,2637.8,2637.3,0.5]
[1727182721310,4.58407,2637.9,2637.4,4.59848]
[1727182721914,4.58407,2637.9,2637.4,0.8069]
[1727182722069,8.37504,2637.9,2637.4,0.8069]
[1727182722811,4.58407,2637.9,2637.4,0.8069]
[1727182723017,8.37504,2637.9,2637.4,0.8069]
[1727182723199,4.58407,2637.9,2637.4,0.8069]
[1727182723386,8.37506,2637.9,2637.4,0.8069]
[1727182723574,3.79104,2637.8,2637.4,0.8069]
[1727182724513,3.79142,2637.6,2637.3,0.5]
[1727182726491,3.79142,2637.6,2636.4,1.0]
[1727182726492,0.7728,2637.1,2636.4,1.0]
[1727182726692,3.7929,2636.5,2636.4,1.0]
[1727182727217,4.3429,2636.5,2636.4,1.0]
[1727182727916,4.3429,2636.5,2636.4,0.97784263]
[1727182728093,5.233747,2636.5,2636.4,0.97784263]
[1727182729085,5.32857987,2636.5,2636.4,0.97784263]
[1727182737209,4.43773287,2636.5,2636.4,0.97784263]
[1727182737408,0.78989935,2637.5,2636.5,0.7676]
[1727182737634,0.78989935,2637.5,2636.9,7.58451]
[1727182737635,3.7915,2637.5,2636.9,7.58451]
[1727182737836,0.7728,2637.6,2636.9,7.58451]
[1727182737837,4.56421,2637.6,2636.9,3.79223]
[1727182738037,3.79163,2637.4,2636.9,3.79223]
[1727182738337,3.79147,2637.5,2636.9,4.550706]
[1727182738497,4.56421,2637.6,2637.0,3.79211]
[1727182738694,8.35566,2637.6,2637.1,0.7676]
[1727182738917,4.56421,2637.6,2637.1,0.7676]
[1727182739126,3.79147,2637.5,2637.1,0.7676]
[1727182740046,0.55,2637.6,2637.2,3.79187]
[1727182740338,4.34139,2637.6,2637.1,0.7676]
[1727182740511,4.34118,2637.7,2637.2,3.79188]
[1727182740718,4.34118,2637.7,2637.1,0.7676]
[1727182740719,0.55,2637.7,2637.1,0.7676]
[1727182740978,4.34132,2637.7,2637.1,4.55953]
[1727182741134,4.34132,2637.7,2637.2,4.627033]
[1727182741850,0.09479075,2637.8,2637.3,3.79173]
[1727182742002,0.55,2637.8,2637.3,3.79173]
[1727182742904,8.07989935,2638.2,2637.4,3.7916]
[1727182742905,7.67620891,2638.1,2637.4,3.7916]
[1727182743217,4.34075,2638.0,2637.4,4.56988967]
[1727182743413,0.55,2638.0,2637.5,3.79144]
[1727182743948,4.34076,2638.0,2637.5,3.79144]
[1727182744247,0.55,2638.0,2637.5,3.79144]
[1727182744757,4.34075,2638.0,2637.5,3.79144]
[1727182745319,0.55,2638.0,2637.5,3.79144]
[1727182745523,3.79068,2638.1,2637.6,3.7913]
[1727182746646,8.0553,2638.2,2637.6,4.59193]
[1727182746826,0.55,2638.1,2637.6,4.59193]
[1727182747036,7.58077,2638.3,2637.7,3.79114]
[1727182747037,0.038,2638.0,2637.7,3.79114]
[1727182747637,0.038,2638.0,2637.7,3.79116]
[1727182748153,0.038,2638.0,2637.6,8.38318]
[1727182748316,0.038,2638.0,2637.7,3.79117]
[1727182749251,0.038,2638.0,2637.6,9.16521572]
[1727182750060,0.038,2638.0,2637.6,5.37398572]
[1727182750470,0.038,2638.0,2637.7,3.79115]
[1727182752908,0.038,2638.0,2637.6,0.80782935]
[1727182753296,0.038,2638.0,2637.6,4.59906935]
[1727182754889,0.038,2638.0,2637.6,4.59913935]
[1727182755882,0.038,2638.0,2637.6,5.09913935]
[1727182758266,0.038,2638.0,2637.6,5.09904935]
[1727182758467,0.038,2638.0,2637.7,3.79117]
[1727182759965,0.038,2638.0,2637.8,3.79093]
[1727182760156,0.038,2638.0,2637.9,6.94822367]
[1727182760395,0.038,2638.0,2637.9,7.82473428]
[1727182762190,0.038,2638.0,2637.9,11.47100963]
[1727182762391,0.038,2638.0,2637.9,11.39519902]
[1727182765201,0.038,2638.0,2637.9,15.39519902]
[1727182765374,0.038,2638.0,2637.9,17.72345468]
[1727182766213,0.038,2638.0,2637.9,13.72345468]
[1727182768113,0.038,2638.0,2637.9,14.22345468]
[1727182768716,0.038,2638.0,2637.9,13.57717933]
[1727182769226,0.038,2638.0,2637.9,18.15795468]
[1727182769592,0.038,2638.0,2637.9,62.12925468]
[1727182770180,0.038,2639.0,2638.9,3.78945]
[1727182770606,0.038,2639.0,2638.8,6.94691367]
[1727182771624,0.038,2639.0,2638.4,3.79009]
[1727182771625,0.8068,2638.9,2638.4,3.79009]
[1727182771775,0.8068,2638.9,2638.4,4.169099]
[1727182771776,4.59634,2638.9,2638.4,4.169099]
[1727182771975,4.59634,2638.9,2638.5,3.79001]
[1727182772303,0.8068,2638.9,2638.5,3.79001]
[1727182773292,4.59626,2638.9,2638.5,3.79001]
[1727182773617,0.8068,2638.9,2638.5,4.53022444]
[1727182774094,4.5963,2638.9,2638.5,4.53022444]
[1727182775113,4.5963,2638.9,2638.5,0.74021444]
[1727182775316,3.78962,2638.8,2638.5,0.74021444]
[1727182776624,4.59626,2638.9,2638.5,0.74021444]
[1727182776782,0.8068,2638.9,2638.5,4.53013444]
[1727182777119,0.038,2639.0,2638.7,3.78973]
[1727182777305,0.038,2639.0,2638.8,0.38655217]
[1727182777495,0.038,2639.0,2638.6,3.86567174]
[1727182781796,3.82732,2639.0,2638.6,3.86567174]
[1727182782005,3.82732,2639.0,2638.6,3.78988]
[1727182783627,3.82732,2639.0,2638.5,4.53012444]
[1727182785315,3.78947,2638.9,2638.5,4.53012444]
[1727182786890,3.78947,2638.9,2638.6,0.45301244]
[1727182789853,3.78947,2638.9,2638.5,4.53012444]
[1727182792910,3.79046,2638.2,2638.1,0.59827743]
[1727182793110,5.14496,2638.2,2638.1,0.59827743]
[1727182793353,5.23973322,2638.2,2638.1,0.59827743]
[1727182793659,5.23973322,2638.2,2637.6,1.50712935]
[1727182793660,3.79075,2638.0,2637.6,1.50712935]
[1727182793950,3.8855237,2638.0,2637.6,1.50712935]
[1727182796350,3.79075,2638.0,2637.6,1.50712935]
[1727182797751,3.88552365,2638.0,2637.6,1.50712935]
[1727182799257,6.22207795,2638.0,2637.6,1.50712935]
[1727182799552,11.55041326,2638.0,2637.6,1.50712935]
[1727182799757,13.03543832,2638.0,2637.6,1.50712935]
[1727182799909,9.87810465,2638.0,2637.6,1.50712935]
[1727182800313,8.29830594,2638.0,2637.6,1.50712935]
[1727182800538,8.8989505,2638.0,2637.6,1.50712935]
[1727182800724,7.26276544,2638.0,2637.6,1.50712935]
[1727182801243,6.07569458,2638.0,2637.6,1.50712935]
[1727182801450,7.2628082,2638.0,2637.6,1.50712935]
[1727182801940,6.7128082,2638.0,2637.6,1.50712935]
[1727182802143,4.59525,2638.0,2637.6,1.50712935]
[1727182802835,6.31431626,2638.0,2637.6,1.50712935]
[1727182805151,4.59525,2638.0,2637.6,1.50712935]
[1727182805323,0.8045,2638.0,2637.6,1.50712935]
[1727182805526,4.60712,2638.1,2637.7,3.79118]
[1727182805733,8.39785,2638.1,2637.6,5.29837935]
[1727182806047,4.60712,2638.1,2637.6,5.29837935]
[1727182806715,4.60712,2638.1,2637.6,5.29832935]
[1727182806918,4.97752362,2638.3,2638.0,3.15733367]
[1727182806919,0.79125364,2638.3,2638.0,3.15733367]
[1727182807243,2.00361362,2638.4,2638.1,0.49900337]
[1727182807244,3.79019,2638.4,2638.1,0.49900337]
[1727182807418,3.79019,2638.4,2637.9,5.69931729]
[1727182807828,3.79039,2638.3,2637.9,1.0]
[1727182808371,3.79019,2638.4,2637.9,5.353224]
[1727182809343,5.39774364,2638.6,2638.1,3.79057]
[1727182809566,4.60649,2638.6,2638.1,3.79057]
[1727182809838,4.60649,2638.6,2638.1,0.9219352]
[1727182810171,0.8165,2638.6,2638.3,3.7903]
[1727182810473,0.55,2638.7,2638.3,3.7903]
[1727182810876,4.60618,2638.8,2638.3,0.93352852]
[1727182811175,3.78975,2638.7,2638.3,0.93352852]
[1727182812780,1.60775364,2638.8,2638.4,3.79006]
[1727182812983,0.038,2639.0,2638.5,0.8327]
[1727182813271,0.038,2639.0,2638.9,4.62215]
[1727182813480,0.038,2639.0,2638.9,5.85483664]
[1727182813639,0.038,2639.0,2638.9,5.77905737]
[1727182813837,0.038,2639.0,2638.9,5.85483568]